bitfinex/quotes_SOLUSD_20251201
["timestamp","ask_amount","ask_price","bid_price","bid_amount"]
[1764550066602,0.99999999,128.49,128.47,8.55484258]
[1764550066802,0.99999999,128.49,128.48,8.55484258]
[1764550067007,8.78076589,128.53,128.48,9.24484258]
[1764550067196,0.99999999,128.5,128.49,0.69]
[1764550067405,0.99999999,128.53,128.49,0.69]
[1764550067611,0.99999999,128.55,128.52,8.55484258]
[1764550067806,0.99999999,128.55,128.54,8.55484258]
[1764550067996,0.99999999,128.57,128.54,9.24484258]
[1764550068199,0.99999999,128.57,128.56,8.55484258]
[1764550068385,0.99999999,128.61,128.56,10.02958821]
[1764550068588,8.77593692,128.61,128.59,10.02958821]
[1764550068804,0.99999999,128.63,128.6,10.02958821]
[1764550069111,0.99999999,128.63,128.62,10.02958821]
[1764550069301,0.99999999,128.63,128.62,10.71958821]
[1764550069513,8.77423617,128.63,128.59,10.02958821]
[1764550069841,0.99999999,128.61,128.58,0.69]
[1764550070114,0.99999999,128.6,128.59,3.6]
[1764550070424,0.99999999,128.6,128.52,17.308864]
[1764550070425,8.77604975,128.6,128.52,17.308864]
[1764550070604,0.99999999,128.59,128.57,10.02958821]
[1764550070803,0.99999999,128.59,128.58,10.02958821]
[1764550071126,0.99999999,128.59,128.58,3.6]
[1764550071486,0.99999999,128.59,128.58,13.62958821]
[1764550071816,0.99999999,128.63,128.58,14.31958821]
[1764550072112,0.99999999,128.63,128.6,10.02958821]
[1764550072293,0.99999999,128.61,128.59,14.31958821]
[1764550072615,0.99999999,128.6,128.58,10.02958821]
[1764550072808,0.99999999,128.6,128.59,3.6]
[1764550073013,0.99999999,128.57,128.56,10.02958821]
[1764550073232,0.99999999,128.57,128.56,3.6]
[1764550073516,0.99999999,128.57,128.48,1.0]
[1764550073517,0.99999999,128.57,128.54,10.02958821]
[1764550073719,0.99999999,128.56,128.55,3.6]
[1764550074226,0.99999999,128.56,128.55,14.31958821]
[1764550074525,0.99999999,128.54,128.53,10.02958821]
[1764550074837,0.99999999,128.54,128.53,13.62958821]
[1764550075628,0.99999999,128.54,128.53,3.6]
[1764550075830,0.99999999,128.55,128.53,14.31958821]
[1764550076117,47.68692817,128.62,128.54,10.71958821]
[1764550076118,0.99999999,128.58,128.54,10.71958821]
[1764550076325,0.99999999,128.59,128.57,10.02958821]
[1764550076526,0.99999999,128.59,128.58,10.02958821]
[1764550077029,0.99999999,128.6,128.58,10.71958821]
[1764550077253,0.99999999,128.6,128.58,0.69]
[1764550077532,0.99999999,128.61,128.59,14.31958821]
[1764550077731,0.99999999,128.61,128.6,10.02958821]
[1764550077911,0.99999999,128.64,128.6,10.71958821]
[1764550078109,0.99999999,128.64,128.62,10.02958821]
[1764550078309,0.99999999,128.63,128.62,10.02958821]
[1764550078540,0.99999999,128.64,128.62,10.02958821]
[1764550078720,8.77382016,128.64,128.61,10.71958821]
[1764550079035,8.77382016,128.64,128.62,10.02958821]
[1764550079208,7.77382017,128.64,128.62,10.02958821]
[1764550079414,0.99999999,128.64,128.63,3.6]
[1764550080459,8.77363183,128.64,128.63,3.6]
[1764550080609,8.77363183,128.64,128.57,10.02958821]
[1764550080610,0.99999999,128.59,128.57,10.02958821]
[1764550080938,0.99999999,128.51,128.49,10.02958821]
[1764550081120,0.99999999,128.53,128.51,3.6]
[1764550081326,0.99999999,128.53,128.52,3.6]
[1764550081711,0.99999999,128.53,128.52,1.0642]
[1764550081910,0.99999999,128.53,128.47,0.69]
[1764550081911,0.99999999,128.49,128.46,10.02958821]
[1764550082132,0.99999999,128.49,128.47,3.6]
[1764550082439,0.99999999,128.47,128.45,10.02958821]
[1764550082645,0.99999999,128.47,128.45,10.71958821]
[1764550082936,0.99999999,128.46,128.43,7.78634275]
[1764550083255,0.99999999,128.46,128.4,0.69]
[1764550083413,0.99999999,128.44,128.41,3.6]
[1764550083730,0.99999999,128.44,128.42,10.02958821]
[1764550083935,0.99999999,128.44,128.43,10.02958821]
[1764550084137,0.99999999,128.45,128.43,10.71958821]
[1764550084356,0.99999999,128.45,128.43,10.02958821]
[1764550084561,0.99999999,128.44,128.43,10.02958821]
[1764550084757,0.99999999,128.44,128.41,0.69]
[1764550084758,0.99999999,128.43,128.4,10.02958821]
[1764550085057,0.99999999,128.48,128.42,10.02958821]
[1764550085263,0.99999999,128.48,128.47,10.02958821]
[1764550085459,0.99999999,128.49,128.47,13.62958821]
[1764550085635,16.308864,128.52,128.47,13.62958821]
[1764550085636,0.99999999,128.5,128.47,4.29]
[1764550085837,0.99999999,128.49,128.48,3.6]
[1764550086032,8.78126147,128.52,128.48,14.31958821]
[1764550086238,0.99999999,128.52,128.51,10.02958821]
[1764550086547,0.99999999,128.52,128.5,10.02958821]
[1764550086854,0.99999999,128.49,128.44,19.46397031]
[1764550087057,0.99999999,128.53,128.45,12.40994492]
[1764550087248,0.99999999,128.49,128.46,3.6]
[1764550087447,0.99999999,128.48,128.47,10.02958821]
[1764550087759,0.99999999,128.48,128.47,13.62958821]
[1764550088159,0.99999999,128.48,128.45,0.69]
[1764550088358,0.99999999,128.48,128.47,10.02958821]
[1764550088537,27.23148223,128.53,128.47,10.02958821]
[1764550088538,8.78190434,128.51,128.47,10.02958821]
[1764550088732,8.78069755,128.53,128.5,10.02958821]
[1764550089047,8.78069755,128.53,128.51,10.02958821]
[1764550089233,0.99999999,128.54,128.52,13.62958821]
[1764550089431,0.99999999,128.54,128.52,10.71958821]
[1764550089644,0.99999999,128.53,128.52,0.69]
[1764550089855,0.99999999,128.53,128.52,10.71958821]
[1764550090056,0.99999999,128.54,128.52,13.62958821]
[1764550090354,7.77948636,128.55,128.45,16.308864]
[1764550090355,0.99999999,128.51,128.45,16.308864]
[1764550090558,0.99999999,128.49,128.47,10.02958821]
[1764550090756,0.99999999,128.47,128.46,10.02958821]
[1764550091056,0.99999999,128.47,128.46,13.62958821]
[1764550091457,0.99999999,128.48,128.46,14.31958821]
[1764550091642,0.99999999,128.5,128.47,10.71958821]
[1764550091856,0.99999999,128.53,128.47,0.69]
[1764550092080,0.99999999,128.54,128.52,10.02958821]
[1764550092287,0.99999999,128.56,128.53,13.62958821]
[1764550092474,0.99999999,128.54,128.53,10.02958821]
[1764550092691,0.99999999,128.58,128.54,0.69]
[1764550092856,0.99999999,128.59,128.54,0.69]
[1764550093052,0.99999999,128.58,128.48,1.0]
[1764550093357,0.99999999,128.55,128.49,20.598864]
[1764550093774,0.99999999,128.61,128.52,16.308864]
[1764550093971,4.06115543,128.7,128.51,8.80994492]
[1764550093972,0.99999999,128.59,128.51,8.80994492]
[1764550094277,0.99999999,128.56,128.52,4.29]
[1764550094478,0.99999999,128.57,128.55,10.02958821]
[1764550094680,0.99999999,128.56,128.53,4.29]
[1764550094888,0.99999999,128.57,128.55,10.02958821]
[1764550095066,0.99999999,128.56,128.54,0.69]
[1764550095267,0.99999999,128.58,128.54,0.69]
[1764550095468,0.99999999,128.56,128.54,0.69]
[1764550095772,0.99999999,128.56,128.55,3.6]
[1764550095970,0.99999999,128.54,128.49,16.308864]
[1764550096183,61.96045422,128.71,128.53,10.02958821]
[1764550096184,0.99999999,128.57,128.53,10.02958821]
[1764550096389,0.99999999,128.57,128.56,10.02958821]
[1764550096592,0.99999999,128.58,128.56,13.62958821]
[1764550096881,0.99999999,128.57,128.56,3.6]
[1764550097074,0.99999999,128.62,128.56,11.37846919]
[1764550097259,0.99999999,128.62,128.6,10.02958821]
[1764550097466,0.99999999,128.66,128.61,10.02958821]
[1764550097782,0.99999999,128.66,128.65,10.02958821]
[1764550097973,0.99999999,128.66,128.65,3.6]
[1764550098180,0.99999999,128.69,128.65,14.28958821]
[1764550098381,0.99999999,128.69,128.68,10.02958821]
[1764550098682,0.99999999,128.7,128.68,10.02958821]
[1764550098882,0.99999999,128.7,128.66,0.66]
[1764550098883,0.99999999,128.7,128.69,3.6]
[1764550099676,8.77000776,128.7,128.69,3.6]
[1764550100098,0.99999999,128.7,128.69,3.6]
[1764550100394,0.99999999,128.7,128.69,13.62958821]
[1764550100596,8.77000776,128.7,128.69,13.62958821]
[1764550100987,0.99999999,128.7,128.69,3.6]
[1764550101189,0.99999999,128.68,128.66,0.66]
[1764550101385,7.77008998,128.7,128.67,13.62958821]
[1764550101692,0.99999999,128.68,128.63,0.66]
[1764550101896,7.77008998,128.7,128.63,0.66]
[1764550101897,0.99999999,128.64,128.63,0.66]
[1764550102083,0.99999999,128.63,128.61,7.77544514]
[1764550102286,0.99999999,128.65,128.63,3.6]
[1764550102497,0.99999999,128.64,128.63,3.6]
[1764550102702,0.99999999,128.65,128.63,3.6]
[1764550102900,0.99999999,128.64,128.63,13.62958821]
[1764550103278,8.77304865,128.65,128.63,3.6]
[1764550103600,8.77304865,128.65,128.64,10.02958821]
[1764550103799,0.99999999,128.67,128.64,10.68958821]
[1764550103997,0.99999999,128.67,128.66,10.02958821]
[1764550104387,0.99999999,128.7,128.66,10.68958821]
[1764550104604,19.4248987,128.71,128.69,10.02958821]
[1764550104605,8.76993011,128.71,128.69,10.02958821]
[1764550104787,0.99999999,128.7,128.67,0.66]
[1764550104995,8.77003302,128.7,128.69,10.02958821]
[1764550105508,7.77003303,128.7,128.69,10.02958821]
[1764550105697,8.77003302,128.7,128.69,10.02958821]
[1764550106002,8.76957813,128.71,128.69,10.02958821]
[1764550106504,0.99999999,128.71,128.7,8.72541085]
[1764550106896,0.99999999,128.7,128.69,8.72541085]
[1764550107100,0.99999999,128.69,128.68,12.32541085]
[1764550107502,19.63721715,128.73,128.65,27.90442167]
[1764550107503,0.99999999,128.68,128.65,27.90442167]
[1764550107701,0.99999999,128.68,128.67,8.72541085]
[1764550108211,0.99999999,128.68,128.67,9.42541085]
[1764550108413,0.99999999,128.69,128.67,9.42541085]
[1764550108615,0.99999999,128.71,128.68,9.39541085]
[1764550108833,0.99999999,128.69,128.68,0.67]
[1764550109006,0.99999999,128.71,128.67,7.77181938]
[1764550109194,0.99999999,128.72,128.67,27.20136783]
[1764550109618,0.99999999,128.72,128.68,0.67]
[1764550109917,0.99999999,128.71,128.69,3.6]
[1764550110292,0.99999999,128.71,128.7,0.67]
[1764550110524,0.99999999,128.71,128.7,3.6]
[1764550111208,0.99999999,128.71,128.7,12.99541085]
[1764550111913,0.99999999,128.71,128.7,3.6]
[1764550112100,0.99999999,128.71,128.7,12.99541085]
[1764550112293,1.21126399,128.74,128.7,20.76541862]
[1764550112498,1.21126399,128.74,128.72,8.72541085]
[1764550112704,1.21126399,128.74,128.71,0.67]
[1764550112894,1.21126399,128.74,128.73,8.72541085]
[1764550112895,0.99999999,128.74,128.73,8.72541085]
[1764550113100,0.2,128.76,128.73,35.91410035]
[1764550113304,0.2,128.76,128.74,0.67]
[1764550113507,0.2,128.76,128.75,3.6]
[1764550113899,1.19999999,128.76,128.75,4.27]
[1764550114218,0.2,128.76,128.75,4.27]
[1764550114422,1.19999999,128.76,128.75,8.72541085]
[1764550114725,0.99999999,128.73,128.68,16.308864]
[1764550114922,0.99999999,128.73,128.72,8.72541085]
[1764550115132,0.99999999,128.73,128.66,0.67]
[1764550115133,0.99999999,128.7,128.66,0.67]
[1764550115320,0.99999999,128.7,128.69,8.72541085]
[1764550115624,0.99999999,128.69,128.67,0.67]
[1764550115929,0.99999999,128.68,128.66,9.39541085]
[1764550116108,0.99999999,128.68,128.67,3.6]
[1764550116504,0.99999999,128.68,128.67,12.32541085]
[1764550116930,0.99999999,128.68,128.67,8.72541085]
[1764550117132,0.99999999,128.68,128.63,0.67]
[1764550117133,0.99999999,128.65,128.63,0.67]
[1764550117434,0.99999999,128.65,128.64,12.32541085]
[1764550117613,0.99999999,128.66,128.64,12.32541085]
[1764550117811,0.99999999,128.66,128.65,9.39541085]
[1764550118125,35.73019347,128.73,128.65,12.99541085]
[1764550118126,0.99999999,128.68,128.65,12.99541085]
[1764550118327,0.99999999,128.68,128.67,8.72541085]
[1764550118526,0.99999999,128.7,128.67,8.72541085]
[1764550118722,0.99999999,128.7,128.69,8.72541085]
[1764550118929,0.99999999,128.7,128.68,0.67]
[1764550119115,0.99999999,128.7,128.69,8.72541085]
[1764550119316,0.99999999,128.71,128.69,8.72541085]
[1764550119527,0.99999999,128.71,128.7,9.39541085]
[1764550119727,0.99999999,128.74,128.7,9.39541085]
[1764550120035,1.19999999,128.76,128.73,8.72541085]
[1764550120218,0.2,128.76,128.75,8.72541085]
[1764550120421,0.99999999,128.75,128.72,0.67]
[1764550120938,0.99999999,128.74,128.7,0.67]
[1764550121130,0.99999999,128.72,128.71,3.6]
[1764550121513,0.99999999,128.7,128.67,7.77181938]
[1764550121814,0.99999999,128.7,128.69,8.72541085]
[1764550122213,0.99999999,128.69,128.67,8.44181938]
[1764550122429,0.99999999,128.69,128.68,12.32541085]
[1764550122735,0.99999999,128.68,128.66,7.77228163]
[1764550122910,0.99999999,128.68,128.67,12.32541085]
[1764550123321,0.99999999,128.68,128.65,7.7729305]
[1764550123517,0.99999999,128.68,128.66,12.32541085]
[1764550123714,0.99999999,128.68,128.67,3.6]
[1764550124337,0.99999999,128.68,128.67,4.27]
[1764550124528,8.76863674,128.73,128.67,4.27]
[1764550124720,0.99999999,128.71,128.68,0.67]
[1764550124918,8.76863674,128.73,128.68,0.67]
[1764550125125,0.99999999,128.72,128.69,7.77024751]
[1764550125523,0.99999999,128.72,128.71,8.72541085]
[1764550125731,0.99999999,128.7,128.68,16.49645748]
[1764550126036,0.99999999,128.7,128.69,3.6]
[1764550126535,0.99999999,128.7,128.69,12.32541085]
[1764550126934,0.99999999,128.7,128.69,3.6]
[1764550127834,0.99999999,128.7,128.69,12.32541085]
[1764550128641,7.76933211,128.72,128.67,6.23829536]
[1764550128642,0.99999999,128.69,128.67,6.23829536]
[1764550128838,0.99999999,128.69,128.68,9.16829536]
[1764550129051,0.99999999,128.69,128.68,3.6]
[1764550129216,0.99999999,128.69,128.68,9.16829536]
[1764550129434,0.99999999,128.69,128.64,19.43326308]
[1764550129632,0.99999999,128.7,128.68,5.56829536]
[1764550129832,0.99999999,128.7,128.65,31.4755757]
[1764550129833,0.99999999,128.71,128.69,5.56829536]
[1764550130152,0.99999999,128.71,128.7,3.6]
[1764550130374,0.99999999,128.71,128.7,9.16829536]
[1764550131530,0.99999999,128.7,128.58,38.88615714]
[1764550131729,0.99999999,128.69,128.67,5.56829536]
[1764550131958,0.99999999,128.68,128.67,5.56829536]
[1764550132453,0.99999999,128.68,128.67,9.16829536]
[1764550132654,0.99999999,128.7,128.67,9.83829536]
[1764550132841,0.99999999,128.7,128.69,5.56829536]
[1764550133062,0.99999999,128.71,128.69,5.56829536]
[1764550133245,0.99999999,128.75,128.7,0.67]
[1764550133451,7.76759505,128.74,128.73,5.56829536]
[1764550133652,0.99999999,128.73,128.72,5.56829536]
[1764550133854,0.99999999,128.72,128.71,5.56829536]
[1764550134029,0.99999999,128.72,128.71,3.6]
[1764550134367,0.99999999,128.68,128.6,8.80994492]
[1764550134538,0.99999999,128.68,128.66,5.56829536]
[1764550134738,0.99999999,128.68,128.67,3.6]
[1764550135334,0.99999999,128.68,128.67,9.16829536]
[1764550135659,0.99999999,128.68,128.67,3.6]
[1764550137250,0.99999999,128.65,128.63,5.56829536]
[1764550137458,0.99999999,128.66,128.64,9.87829536]
[1764550137648,0.99999999,128.67,128.65,9.16829536]
[1764550137841,0.99999999,128.68,128.66,5.56829536]
[1764550138046,0.99999999,128.66,128.65,5.56829536]
[1764550138365,0.99999999,128.65,128.62,0.71]
[1764550138654,0.99999999,128.65,128.63,3.6]
[1764550139044,0.99999999,128.65,128.64,0.71]
[1764550139353,0.99999999,128.66,128.64,8.48363184]
[1764550139557,0.99999999,128.67,128.65,5.56829536]
[1764550139962,0.99999999,128.67,128.66,5.56829536]
[1764550140158,0.99999999,128.68,128.66,6.27829536]
[1764550140351,0.99999999,128.68,128.67,5.56829536]
[1764550140661,0.99999999,128.67,128.66,0.71]
[1764550140866,0.99999999,128.67,128.66,6.27829536]
[1764550141037,0.99999999,128.69,128.66,6.27829536]
[1764550141241,0.99999999,128.69,128.68,5.56829536]
[1764550141467,0.99999999,128.7,128.68,16.93951077]
[1764550141656,0.99999999,128.7,128.69,6.27829536]
[1764550141852,2.0,128.79,128.69,6.27829536]
[1764550141853,0.99999999,128.73,128.69,6.27829536]
[1764550142065,23.47071056,128.84,128.72,11.13659072]
[1764550142066,0.99999999,128.79,128.72,11.13659072]
[1764550142274,0.99999999,128.75,128.73,3.6]
[1764550142564,1.19999999,128.76,128.74,5.56829536]
[1764550142865,0.2,128.76,128.75,5.56829536]
[1764550143166,0.2,128.76,128.75,6.27829536]
[1764550143348,1.19999999,128.76,128.72,0.71]
[1764550143552,0.2,128.76,128.75,5.56829536]
[1764550143953,0.2,128.76,128.75,3.58]
[1764550144149,1.19999999,128.76,128.75,3.58]
[1764550144753,8.96638706,128.76,128.7,27.1943346]
[1764550144955,0.99999999,128.73,128.72,5.56829536]
[1764550145364,0.99999999,128.73,128.72,6.27829536]
[1764550145551,0.99999999,128.75,128.72,6.27829536]
[1764550145755,1.19999999,128.76,128.74,5.56829536]
[1764550145958,0.2,128.76,128.75,5.56829536]
[1764550146165,0.2,128.76,128.73,0.71]
[1764550146347,0.2,128.76,128.75,5.56829536]
[1764550146666,0.99999999,128.81,128.78,5.56829536]
[1764550146850,0.99999999,128.8,128.79,9.14829536]
[1764550147456,0.99999999,128.81,128.79,9.14829536]
[1764550147657,19.40542888,128.83,128.79,9.14829536]
[1764550147658,0.99999999,128.8,128.79,9.14829536]
[1764550148169,0.99999999,128.82,128.79,9.14829536]
[1764550148347,0.99999999,128.8,128.79,3.58]
[1764550148548,1.19999999,128.84,128.8,0.71]
[1764550149371,1.19999999,128.84,128.83,5.56829536]
[1764550149567,0.2,128.89,128.83,33.44588054]
[1764550149747,0.2,128.89,128.85,11.13659072]
[1764550149945,0.2,128.89,128.88,11.13659072]
[1764550150156,0.2,128.91,128.88,11.13659072]
[1764550150462,0.69,128.98,128.9,5.56829536]
[1764550150646,0.2,128.99,128.97,5.56829536]
[1764550150852,0.2,128.99,128.98,9.14829536]
[1764550151662,8.64253895,128.99,128.9,8.46792203]
[1764550151969,5.56829536,128.98,128.88,22.58715936]
[1764550152170,0.69,128.98,128.93,5.56829536]
[1764550152476,0.69,128.97,128.94,5.56829536]
[1764550152857,5.56829536,128.96,128.92,3.58]
[1764550153352,6.25829536,128.95,128.9,5.56829536]
[1764550153665,7.75554521,128.94,128.93,5.56829536]
[1764550154166,7.75505537,128.95,128.93,5.56829536]
[1764550154365,14.57824028,128.99,128.94,5.56829536]
[1764550154666,0.69,128.98,128.95,5.56829536]
[1764550154869,0.69,128.98,128.94,5.56829536]
[1764550155063,16.308864,128.96,128.92,5.56829536]
[1764550155263,8.80994492,128.95,128.9,5.56829536]
[1764550155473,27.1465136,128.93,128.9,3.58]
[1764550155655,0.69,128.92,128.9,3.58]
[1764550155977,0.69,128.92,128.9,9.14829536]
[1764550156161,0.69,128.92,128.85,17.018864]
[1764550156357,0.69,128.92,128.89,5.56829536]
[1764550156762,0.69,128.92,128.88,5.56829536]
[1764550156957,0.69,128.92,128.86,3.58]
[1764550157157,0.69,128.92,128.85,0.71]
[1764550157158,0.69,128.92,128.89,5.56829536]
[1764550157373,5.56829536,128.91,128.82,0.71]
[1764550157563,5.56829536,128.91,128.8,24.97749836]
[1764550157564,27.1507253,128.91,128.85,5.56829536]
[1764550157765,0.69,128.9,128.86,5.56829536]
[1764550158367,0.69,128.9,128.87,5.56829536]
[1764550158576,22.56715936,128.9,128.85,5.56829536]
[1764550158781,5.56829536,128.88,128.84,9.14829536]
[1764550158957,16.998864,128.9,128.81,9.14829536]
[1764550158958,5.56829536,128.85,128.81,9.14829536]
[1764550159153,22.56715936,128.84,128.74,17.49]
[1764550159465,22.56715936,128.84,128.78,5.56829536]
[1764550159466,5.56829536,128.83,128.78,5.56829536]
[1764550159665,27.16969414,128.82,128.75,3.58]
[1764550159866,27.85969414,128.82,128.78,5.56829536]
[1764550160467,0.69,128.81,128.78,5.56829536]
[1764550160664,0.69,128.81,128.79,3.58]
[1764550160981,7.76397515,128.8,128.79,3.58]
[1764550161585,7.76397515,128.8,128.75,7.76665563]
[1764550161771,6.25829536,128.79,128.76,3.58]
[1764550161972,0.69,128.79,128.76,3.58]
[1764550162173,0.69,128.78,128.76,3.58]
[1764550162382,27.85762785,128.83,128.77,0.71]
[1764550162561,27.85762785,128.83,128.8,5.56829536]
[1764550162762,7.76216719,128.83,128.81,5.56829536]
[1764550162971,7.76216719,128.83,128.82,3.58]
[1764550163375,8.45216719,128.83,128.82,3.58]
[1764550163572,14.02046255,128.83,128.79,5.56829536]
[1764550163771,6.25829536,128.82,128.77,5.56829536]
[1764550163996,5.56829536,128.8,128.76,5.56829536]
[1764550164197,5.56829536,128.77,128.71,5.56829536]
[1764550164414,5.56829536,128.77,128.69,7.77059411]
[1764550164415,5.56829536,128.76,128.72,3.58]
[1764550164691,5.56829536,128.76,128.71,5.56829536]
[1764550164896,0.67,128.75,128.73,3.58]
[1764550165086,7.76759359,128.74,128.73,3.58]
[1764550165397,6.23829536,128.83,128.74,0.69]
[1764550165584,0.67,128.83,128.8,5.56829536]
[1764550165766,0.67,128.83,128.81,3.58]
[1764550165972,5.56829536,128.82,128.77,3.58]
[1764550166178,22.54715936,128.83,128.78,5.56829536]
[1764550166385,22.59715936,128.83,128.78,5.56829536]
[1764550166563,22.59715936,128.82,128.78,5.56829536]
[1764550166991,0.72,128.81,128.78,5.56829536]
[1764550167293,7.76397515,128.8,128.78,5.56829536]
[1764550167673,7.76397515,128.8,128.75,7.76659763]
[1764550167876,0.72,128.79,128.76,9.14829536]
[1764550168280,7.76397515,128.8,128.77,5.56829536]
[1764550168464,8.48397515,128.8,128.77,5.56829536]
[1764550168870,0.72,128.79,128.75,5.56829536]
[1764550169102,0.72,128.79,128.76,3.58]
[1764550169576,27.89198066,128.81,128.77,5.56829536]
[1764550169781,0.72,128.8,128.78,5.56829536]
[1764550169969,0.72,128.8,128.77,5.56829536]
[1764550170167,0.72,128.8,128.76,9.14829536]
[1764550170697,7.76457799,128.79,128.76,9.14829536]
[1764550171002,0.72,128.8,128.77,5.56829536]
[1764550171296,0.72,128.79,128.77,5.56829536]
[1764550171593,8.48294888,128.82,128.78,5.56829536]
[1764550171796,8.48294888,128.82,128.77,0.7]
[1764550171797,8.48294888,128.82,128.79,5.56829536]
[1764550172192,0.72,128.81,128.79,9.14829536]
[1764550172582,0.72,128.81,128.78,5.56829536]
[1764550172776,8.48392422,128.81,128.79,3.58]
[1764550173183,8.48392422,128.81,128.79,9.14829536]
[1764550173385,7.76392422,128.81,128.79,9.14829536]
[1764550173777,7.76392422,128.81,128.72,5.56829536]
[1764550173778,0.72,128.8,128.72,13.33699238]
[1764550174101,0.72,128.8,128.72,5.56829536]
[1764550174102,5.56829536,128.77,128.72,5.56829536]
[1764550174410,5.56829536,128.77,128.73,3.58]
[1764550174713,27.18446601,128.75,128.67,0.7]
[1764550175012,33.47276137,128.75,128.7,5.56829536]
[1764550175394,0.72,128.74,128.68,3.58]
[1764550175589,0.72,128.74,128.71,5.56829536]
[1764550175889,6.28829536,128.74,128.69,5.56829536]
[1764550176090,5.56829536,128.72,128.64,0.7]
[1764550176307,5.56829536,128.72,128.67,5.56829536]
[1764550176512,0.72,128.72,128.68,5.56829536]
[1764550176813,7.77000777,128.7,128.69,3.58]
[1764550177015,17.028864,128.73,128.69,3.58]
[1764550177186,21.87715936,128.73,128.69,3.58]
[1764550177385,6.28829536,128.72,128.69,3.58]
[1764550177581,5.56829536,128.71,128.64,16.308864]
[1764550177818,6.28829536,128.71,128.66,5.56829536]
[1764550178023,5.56829536,128.7,128.66,5.56829536]
[1764550178308,0.72,128.7,128.67,9.14829536]
[1764550178815,6.28829536,128.72,128.67,9.14829536]
[1764550179235,6.28829536,128.71,128.67,3.58]
[1764550179591,0.72,128.71,128.67,9.14829536]
[1764550179798,0.72,128.7,128.67,9.14829536]
[1764550180411,0.72,128.7,128.68,3.58]
[1764550180924,7.77061154,128.69,128.68,3.58]
[1764550181096,7.77061154,128.69,128.65,5.56829536]
[1764550181421,8.49061154,128.69,128.66,3.58]
[1764550181593,7.76880049,128.72,128.68,5.56829536]
[1764550181790,7.76880049,128.72,128.7,5.56829536]
[1764550182018,27.91080173,128.72,128.68,5.56829536]
[1764550182206,27.91080173,128.72,128.69,5.56829536]
[1764550182414,0.72,128.71,128.69,3.58]
[1764550183000,7.77000777,128.7,128.69,3.58]
[1764550183198,7.77000777,128.7,128.69,9.14829536]
[1764550184012,7.77000777,128.7,128.69,3.58]
[1764550184211,7.77000777,128.7,128.69,9.14829536]
[1764550184621,7.76952621,128.71,128.69,3.58]
[1764550184800,7.76952621,128.71,128.69,9.14829536]
[1764550185001,27.19080173,128.72,128.69,3.58]
[1764550185208,27.19080173,128.72,128.7,5.56829536]
[1764550185594,27.19080173,128.72,128.71,3.58]
[1764550186128,19.42200124,128.72,128.71,3.58]
[1764550186506,20.14200124,128.72,128.71,3.58]
[1764550186898,19.42200124,128.72,128.71,3.58]
[1764550188019,7.768197,128.73,128.71,3.58]
[1764550188313,27.18281004,128.76,128.72,6.26829536]
[1764550188513,0.72,128.75,128.69,0.7]
[1764550188704,5.56829536,128.74,128.7,9.14829536]
[1764550188901,5.56829536,128.73,128.67,7.77133579]
[1764550189094,5.56829536,128.73,128.71,3.58]
[1764550189300,0.72,128.73,128.71,3.58]
[1764550189909,7.76880049,128.72,128.71,3.58]
[1764550190425,7.76880049,128.72,128.7,5.56829536]
[1764550190426,7.76880049,128.72,128.7,8.72470368]
[1764550190634,7.76842628,128.73,128.71,12.30470368]
[1764550191212,7.76699029,128.75,128.72,8.72470368]
[1764550191524,8.48699029,128.75,128.71,3.58]
[1764550191709,0.72,128.74,128.71,3.58]
[1764550191914,7.768197,128.73,128.71,3.58]
[1764550192634,35.91339318,128.73,128.72,3.58]
[1764550192810,27.9086895,128.73,128.72,3.58]
[1764550193010,7.768197,128.73,128.72,3.58]
[1764550193218,8.48754065,128.75,128.72,3.58]
[1764550193410,8.48754065,128.75,128.65,16.308864]
[1764550193411,36.62972005,128.75,128.65,16.308864]
[1764550193739,9.44470368,128.74,128.67,0.7]
[1764550193919,17.21109075,128.76,128.67,8.47162167]
[1764550194182,7.76638707,128.76,128.74,8.72470368]
[1764550194427,7.76638707,128.76,128.75,3.58]
[1764550194624,7.76588367,128.77,128.75,3.58]
[1764550194816,7.76292106,128.82,128.76,9.42470368]
[1764550195023,7.76292106,128.82,128.78,8.72470368]
[1764550195224,8.48292106,128.82,128.78,8.72470368]
[1764550195544,27.16984545,128.82,128.79,8.72470368]
[1764550195745,27.16984545,128.82,128.8,3.58]
[1764550196031,7.76397515,128.8,128.79,3.58]
[1764550196521,27.86391303,128.8,128.74,0.71]
[1764550196746,27.86391303,128.8,128.75,3.58]